[Event "1st Festival Galdar 2024"]
[Site "?"]
[Date "2024.09.03"]
[Round "2.18"]
[White "Del Rio De Angelis, Salvador G."]
[Black "Blanco Garcia Bajo, David"]
[Result "1-0"]
[Annotator "TA"]
[ECO "E44"]
[WhiteElo "2376"]
[BlackElo "1969"]
[PlyCount "61"]
[EventDate "2024.09.02"]
[EventType "swiss"]
[SourceTitle "playchess.com"]
[Source "ChessBase"]
[SourceQuality "1"]
[TimeControl "5400+30"]

{[%evp 21,61,64,91,78,121,112,112,116,129,86,101,94,105,95,104,113,178,164,228,227,211,212,232,168,191,130,181,180,175,100,155,140,878,862,2179,2268,29990,29991,29996,29997,29997,29998]} 1. d4 {[%emt 0:00:05]} e6 {[%emt 0:00:47]} 2. c4 {[%emt 0:00:09]} Nf6 {[%emt 0:00:08]} 3. Nc3 {[%emt 0:00:09]} Bb4 {[%emt 0:00:08]} 4. e3 {[%emt 0:00:08]} b6 {[%emt 0:00:21]} 5. Nge2 {[%emt 0:00:12]} Bb7 {[%emt 0:00:36]} 6. a3 {[%emt 0:00:14]} Bxc3+ {[%emt 0:04:58]} 7. Nxc3 {[%emt 0:00:08]} c5 {[%emt 0:00:35]} 8. d5 {[%emt 0:01:03]} exd5 {[%emt 0:04:03]} 9. cxd5 {[%emt 0:00:08]} O-O {[%emt 0:01:27]} 10. Be2 {[%emt 0:01:05]} Re8 {[%emt 0:04:55]} 11. O-O {[%emt 0:00:36]} d6 {[%emt 0:02:06]} 12. f3 {[%emt 0:00:49][%cal Bf2f3,Bf3f4][%mdl 32]} a6 {[%emt 0:08:18]} 13. a4 {[%emt 0:01:28]} Nbd7 {[%emt 0:02:30][%cal Bb8d7,Bd7e5,Be5g6,Bg6h8,Bh8f7][%mdl 32]} 14. e4 {[%emt 0:00:27] White is better.} Ne5 {[%emt 0:01:23]} 15. g4 {[%emt 0:03:48][%cal Bg2g4,Bg4g5][%mdl 32]} Bc8 {[%emt 0:04:18]} 16. g5 {[%emt 0:01:36]} Nfd7 {[%emt 0:00:19]} 17. f4 {[%emt 0:07:02]} Ng6 {[%emt 0:00:10]} 18. Qe1 $36 {[%emt 0:00:13][%mdl 2048] White is really pushing.} f6 {[%emt 0:03:01] [#]} (18... c4 $16 {was called for.}) 19. h4 $1 $18 {[%emt 0:02:22][%cal Bh2h4,Bh4h5][%mdl 32]} ({Much less strong is} 19. f5 Nge5 $16) 19... Ndf8 {[%emt 0:08:22]} (19... c4 $142 20. Bxc4 (20. h5 Nh8 $18) 20... fxg5) 20. h5 {[%emt 0:12:22]} Nh8 {[%emt 0:01:02]} 21. gxf6 {[%emt 0:05:07]} Qxf6 {[%emt 0:01:32]} 22. Qg3 {[%emt 0:02:23][%cal Oe4e5] Wards off Bh3. Hoping for e5!} Nf7 {[%emt 0:01:56]} 23. Be3 {[%emt 0:04:15]} ({White should play} 23. Kh1 $18) 23... Bd7 {[%emt 0:01:06]} (23... Nd7 $16 {was worth a try.} 24. Rf2 Kh8) 24. Rad1 {[%emt 0:02:37]} b5 {[%emt 0:00:59]} 25. e5 {[%emt 0:00:47]} (25. Bd2 $18) 25... dxe5 $16 {[%emt 0:02:53]} 26. Ne4 {[%emt 0:00:35] White is more active.} Qd8 {[%emt 0:04:17][%mdl 8192] Loses the game.} (26... Qf5 $16) 27. fxe5 $18 {[%emt 0:01:40]} Rxe5 {[%emt 0:00:14] [#]} 28. Rxf7 $1 {[%emt 0:00:32][%csl Gf7][%cal Rg3g7][%mdl 512]} Ng6 {[%emt 0:02:41]} (28... Kxf7 29. Qxe5) 29. hxg6 {[%emt 0:00:39] White mates.} Rxe4 {[%emt 0:00:11]} 30. gxh7+ {[%emt 0:00:26]} Kxf7 {[%emt 0:00:45]} 31. Bh5+ {[%emt 0:00:07] Weighted Error Value: White=0.17 (very precise) /Black=0.49.  Loses game:     	---       	Black=1      Mistake:       	White=2     	Black=3      Inaccurate:     	White=1     	Black=2      OK:         	White=8     	Black=5      Best:        	White=1     	Black=1} 1-0

[Event "1st Festival Galdar 2024"]
[Site "?"]
[Date "2024.09.03"]
[Round "2.19"]
[White "Crespo Ruiz, Manuel Maria"]
[Black "Barlov, Dragan"]
[Result "0-1"]
[Annotator "TA"]
[ECO "B07"]
[WhiteElo "1963"]
[BlackElo "2375"]
[PlyCount "107"]
[EventDate "2024.09.02"]
[EventType "swiss"]
[SourceTitle "playchess.com"]
[Source "ChessBase"]
[SourceQuality "1"]
[TimeControl "5400+30"]

{[%evp 9,107,37,39,25,42,25,28,13,39,35,40,37,68,41,65,30,50,21,33,27,31,8,13,0,11,-46,-29,-67,-58,-92,-80,-91,-100,-112,-103,-146,-153,-131,-128,-190,-159,-147,-133,-227,-250,-279,-228,-241,-244,-218,-124,-264,-224,-266,-265,-296,-299,-301,-295,-279,-292,-339,-339,-370,-330,-389,-398,-399,-403,-464,-315,-385,-387,-400,-346,-358,-367,-504,-371,-458,-421,-435,-379,-379,-374,-441,-382,-595,-412,-1199,-1161,-1402,-1287,-1533,-1502,-29978,-29979,-29978,-29979,-29992]} 1. d4 {[%emt 0:00:04]} d6 {[%emt 0:03:00]} 2. e4 {[%emt 0:00:35]} Nf6 {[%emt 0:00:19]} 3. Nc3 {[%emt 0:00:46]} c6 {[%emt 0:00:15]} 4. Bd3 {[%emt 0:07:05]} e5 {[%emt 0:02:37]} 5. Nf3 {[%emt 0:02:13]} Nbd7 {[%emt 0:03:49]} 6. O-O {[%emt 0:03:11]} Be7 {[%emt 0:01:47]} 7. Ne2 {[%emt 0:05:34]} O-O {[%emt 0:07:12]} 8. Ng3 {[%emt 0:01:29] White has an edge.} Re8 {[%emt 0:05:50]} 9. c3 {[%emt 0:02:03]} Bf8 {[%emt 0:01:08]} 10. Re1 {[%emt 0:00:25]} g6 {[%emt 0:04:49]} 11. h3 {[%emt 0:01:14]} Bg7 {[%emt 0:00:36]} 12. Qc2 {[%emt 0:09:16]} b6 {[%emt 0:15:17]} 13. b3 {[%emt 0:09:11]} Bb7 {[%emt 0:03:35]} 14. Bb2 {[%emt 0:02:18]} Qc7 {[%emt 0:08:59]} 15. Rad1 {[%emt 0:04:27]} Nf8 {[%emt 0:01:35][%cal Bd7f8,Bf8e6,Be6c5,Bc5a4,Ba4b2][%mdl 32]} 16. dxe5 {[%emt 0:12:55]} dxe5 {[%emt 0:00:20]} 17. c4 {[%emt 0:00:09]} (17. a4 $11) 17... N6d7 $15 {[%emt 0:00:20]} 18. b4 {[%emt 0:02:25]} Ne6 {[%emt 0:03:00]} 19. Nf1 {[%emt 0:02:13]} c5 {[%emt 0:06:45]} 20. Ne3 {[%emt 0:03:07]} cxb4 {[%emt 0:00:55]} 21. Nd5 {[%emt 0:01:49]} Bxd5 {[%emt 0:08:26]} 22. exd5 {[%emt 0:02:53]} Nec5 {[%emt 0:00:55]} 23. Bf1 {[%emt 0:00:23]} Qd6 {[%emt 0:03:42]} 24. g3 {[%emt 0:03:27]} (24. g4 $17) 24... a5 {[%emt 0:04:41]} 25. Bg2 {[%emt 0:02:16]} Rac8 {[%emt 0:01:09][%cal Ob6b5] Hoping for ...b5!} 26. Qd2 {[%emt 0:02:13]} (26. Ng5 $17 {is a better defense.}) 26... Na4 $19 {[%emt 0:01:38][%cal Oa4b2] A dynamic duo of knights.} 27. Ng5 {[%emt 0:02:08]} Nxb2 {[%emt 0:00:07]} (27... Rxc4 28. Ne4 Rxe4 29. Rxe4 $17) 28. Ne4 {[%emt 0:01:35]} Qb8 {[%emt 0:00:26]} (28... Nxc4 29. Nxd6 Nxd6 (29... Nxd2 30. Rxd2 f5 31. Nxc8 $15) 30. h4 $11) 29. Qxb2 {[%emt 0:00:33]} h6 {[%emt 0:00:31]} ({Much less strong is} 29... Rxc4 30. d6 $17) ({Better is} 29... f5 $1 $19 {[%cal Rf5e4]} 30. Ng5 e4 (30... Rxc4 31. d6 $15)) 30. Qe2 {[%emt 0:03:32] White does not recover from this.} (30. g4 $17 {was worth a try.}) 30... f5 {[%emt 0:00:28]} 31. Nd2 {[%emt 0:00:32]} e4 {[%emt 0:00:15]} 32. g4 {[%emt 0:14:29] White is weak on the dark squares} Nc5 {[%emt 0:02:18]} 33. gxf5 {[%emt 0:00:00]} gxf5 {[%emt 0:00:09]} 34. Qh5 {[%emt 0:00:00]} Rf8 {[%emt 0:01:40]} 35. Nf1 {[%emt 0:00:00]} Nd3 {[%emt 0:02:32]} 36. Re3 {[%emt 0:00:00]} Qf4 {[%emt 0:03:18]} 37. Rdxd3 {[%emt 0:01:51]} exd3 {[%emt 0:00:05]} 38. Rxd3 {[%emt 0:00:35]} Rxc4 {[%emt 0:01:20]} ({Resist} 38... Qxc4 39. Qe2 $19) 39. Rg3 {[%emt 0:00:32]} Qd6 {[%emt 0:03:03]} 40. Qe2 {[%emt 0:00:28]} Rc7 {[%emt 0:00:15]} 41. Re3 {[%emt 0:00:03]} Qg6 {[%emt 0:00:38]} 42. Rg3 {[%emt 0:00:36]} Qf6 {[%emt 0:00:20]} 43. Nd2 {[%emt 0:00:47]} Re7 {[%emt 0:00:18]} 44. Qh5 {[%emt 0:00:32]} Qa1+ {[%emt 0:01:15]} 45. Nf1 {[%emt 0:00:05]} Qe5 {[%emt 0:00:00]} 46. Re3 {[%emt 0:00:56]} Qd6 {[%emt 0:00:00]} 47. Rg3 {[%emt 0:00:30]} f4 {[%emt 0:00:00]} 48. Rd3 {[%emt 0:00:32]} (48. Rg6 {is the only way for White.} Rf6 49. Rxf6 Qxf6 50. Qd1) 48... Rc8 {[%emt 0:01:59] [#] Strongly threatening ...Rc3.} 49. Bf3 {[%emt 0:00:30]} (49. Rd1 $142) 49... Re5 {[%emt 0:00:15]} 50. Qh4 {[%emt 0:00:20]} Rc1 {[%emt 0:00:27] ( -> ...Qg6+)} 51. Bg2 {[%emt 0:00:42]} Rg5 {[%emt 0:00:13] Threatens to win with ...Qg6.} 52. Rf3 {[%emt 0:00:29]} Qxd5 {[%emt 0:00:45]} 53. Kh2 {[%emt 0:00:31] [#]} Rxf1 $1 {[%emt 0:00:42]} 54. Rg3 {[%emt 0:00:30] Weighted Error Value: White=0.71/Black=0.27 (precise) .  Mistake:       	White=6     	Black=1      Inaccurate:     	White=7     	Black=4      OK:         	White=5     	Black=17     Best:        	---       	Black=3} (54. Qxf4 Be5) 0-1

[Event "1st Festival Galdar 2024"]
[Site "?"]
[Date "2024.09.03"]
[Round "2.20"]
[White "Ladron De Guevara Pinto, Paolo"]
[Black "Betancourt Echazabal, Antonio"]
[Result "1-0"]
[Annotator "RC"]
[ECO "B33"]
[WhiteElo "2371"]
[BlackElo "1927"]
[PlyCount "85"]
[EventDate "2024.09.02"]
[EventType "swiss"]
[SourceTitle "playchess.com"]
[Source "ChessBase"]
[SourceQuality "1"]
[TimeControl "5400+30"]

1. e4 {[%emt 0:00:03]} c5 {[%emt 0:00:06]} 2. Nf3 {[%emt 0:00:13]} Nc6 {[%emt 0:00:05]} 3. d4 {[%emt 0:00:14]} cxd4 {[%emt 0:00:04]} 4. Nxd4 {[%emt 0:00:05]} Nf6 {[%emt 0:00:05]} 5. Nc3 {[%emt 0:00:05]} d6 {[%emt 0:00:04]} 6. Nb3 {[%emt 0:00:06]} e5 {[%emt 0:00:44]} 7. Bg5 {[%emt 0:01:34]} Be7 {[%emt 0:00:05]} 8. Bxf6 {[%emt 0:04:15]} Bxf6 {[%emt 0:00:03]} 9. Nd5 {[%emt 0:00:41]} Bg5 {[%emt 0:00:08]} 10. a4 {[%emt 0:08:48]} a5 {[%emt 0:04:09]} 11. Nd2 {[%emt 0:06:27]} Be6 {[%emt 0:14:21]} 12. Nc4 {[%emt 0:01:52]} Nd4 {[%emt 1:16:36]} 13. Ncb6 {[%emt 0:11:51]} Bxd5 {[%emt 0:00:00]} 14. Nxd5 {[%emt 0:00:05]} O-O {[%emt 0:00:00]} 15. c3 {[%emt 0:01:57]} Ne6 {[%emt 0:00:00]} 16. h4 {[%emt 0:00:29]} Bh6 {[%emt 0:00:00]} 17. g3 {[%emt 0:01:30]} Nc5 {[%emt 0:00:00]} 18. Bg2 {[%emt 0:02:45]} Nd7 {[%emt 0:00:00]} 19. Qb3 {[%emt 0:04:50]} Nf6 {[%emt 0:00:00]} 20. Rd1 {[%emt 0:05:40]} Nxd5 {[%emt 0:00:00]} 21. Rxd5 {[%emt 0:00:07]} Qc7 {[%emt 0:00:00]} 22. O-O {[%emt 0:00:44]} Rfd8 {[%emt 0:00:00]} 23. Rfd1 {[%emt 0:01:45]} g6 {[%emt 0:00:00]} 24. Bf1 {[%emt 0:00:33]} Bf8 {[%emt 0:00:00]} 25. Rb5 {[%emt 0:01:13]} Rab8 {[%emt 0:00:00]} 26. Bc4 {[%emt 0:00:42]} b6 {[%emt 0:00:00]} 27. Rd3 {[%emt 0:02:25]} Kg7 {[%emt 0:00:00]} 28. Bd5 {[%emt 0:00:17]} Be7 {[%emt 0:00:00]} 29. Bxf7 {[%emt 0:05:24]} Bxh4 {[%emt 0:00:00]} 30. Be6 {[%emt 0:04:30]} Bg5 {[%emt 0:00:00]} 31. Qd1 {[%emt 0:00:56]} h5 {[%emt 0:01:43]} 32. f4 {[%emt 0:03:16]} exf4 {[%emt 0:04:27]} 33. Rxg5 {[%emt 0:00:44]} Qe7 {[%emt 0:00:01]} 34. gxf4 {[%emt 0:01:36]} Qxe6 {[%emt 0:00:04]} 35. f5 {[%emt 0:00:33]} Qxe4 {[%emt 0:00:09]} 36. Qxh5 {[%emt 0:13:36]} Qxf5 {[%emt 0:03:24]} 37. Rdg3 {[%emt 0:00:31]} Qb1+ {[%emt 0:00:01]} 38. Kh2 {[%emt 0:00:20]} Qc2+ {[%emt 0:02:08]} 39. Rg2 {[%emt 0:00:09]} Rh8 {[%emt 0:00:01]} 40. Rxg6+ {[%emt 0:00:09]} Qxg6 {[%emt 0:00:21]} 41. Rxg6+ {[%emt 0:00:06]} Kf7 {[%emt 0:00:01]} 42. Rh6+ {[%emt 0:00:07]} Kg7 {[%emt 0:00:01]} 43. Qg6+ {[%emt 0:00:08]} 1-0